bitfinex/quotes_BTCUSD_20220202
["timestamp","ask_amount","ask_price","bid_price","bid_amount"]
[1643818595818,1.22888222,37194.0,37193.0,0.22851797]
[1643818596014,1.15,37194.0,37193.0,0.22851797]
[1643818596217,0.00055658,37198.0,37193.0,0.22851797]
[1643818596419,0.00055658,37198.0,37194.0,0.0493]
[1643818596615,0.01679975,37204.0,37193.0,0.22851797]
[1643818596816,0.27538361,37201.0,37193.0,0.22851797]
[1643818597017,0.09289668,37199.0,37193.0,0.22851797]
[1643818597217,0.01679975,37204.0,37193.0,0.22851797]
[1643818597418,0.0004692,37197.0,37193.0,0.22851797]
[1643818598019,0.01679975,37204.0,37193.0,0.22851797]
[1643818598268,0.01679975,37204.0,37185.0,0.7363]
[1643818598269,0.30793675,37200.0,37185.0,0.7363]
[1643818598665,0.30793675,37200.0,37185.0,0.63995001]
[1643818598866,0.09976552,37192.0,37185.0,0.63995001]
[1643818599267,0.09976552,37192.0,37188.0,0.27882808]
[1643818599466,0.09976552,37192.0,37187.0,0.00030007]
[1643818599665,0.26369117,37193.0,37187.0,0.00030007]
[1643818600466,0.26369117,37193.0,37181.0,0.0011]
[1643818600467,0.24534432,37187.0,37181.0,0.0011]
[1643818600668,0.08171768,37183.0,37181.0,0.0011]
[1643818600868,0.24534432,37187.0,37182.0,0.02118413]
[1643818601268,0.24534432,37187.0,37182.0,0.10328]
[1643818601467,0.24534432,37187.0,37181.0,0.00079993]
[1643818602016,0.10089122,37184.0,37183.0,0.00030011]
[1643818602215,1.54089122,37184.0,37183.0,0.00030011]
[1643818602615,1.45,37184.0,37183.0,0.00030011]
[1643818602816,1.45,37184.0,37181.0,0.00079993]
[1643818603019,0.32070369,37183.0,37182.0,0.00030011]
[1643818603418,1.97070369,37183.0,37182.0,0.00030011]
[1643818603623,1.97070369,37183.0,37178.0,0.0010597]
[1643818603624,0.05,37180.0,37178.0,0.0010597]
[1643818603816,1.6993,37179.0,37178.0,0.0010597]
[1643818604019,2.55622,37179.0,37178.0,0.0010597]
[1643818604219,2.82752216,37179.0,37178.0,0.0010597]
[1643818604619,2.92752216,37179.0,37178.0,5.97e-05]
[1643818604817,2.97752216,37179.0,37178.0,5.97e-05]
[1643818605216,3.07752216,37179.0,37178.0,5.97e-05]
[1643818605661,2.97752216,37179.0,37178.0,5.97e-05]
[1643818605867,2.73433561,37179.0,37178.0,5.97e-05]
[1643818606064,2.73433561,37179.0,37170.0,0.0001597]
[1643818606065,0.05,37171.0,37170.0,0.0001597]
[1643818606270,2.67932332,37171.0,37170.0,0.0001597]
[1643818606464,2.82907121,37171.0,37170.0,0.0001597]
[1643818606663,2.92907121,37171.0,37170.0,0.0001597]
[1643818606865,3.30748769,37171.0,37170.0,0.0001597]
[1643818607167,3.2577398,37171.0,37170.0,0.0001597]
[1643818607365,1.65015,37170.0,37161.0,0.01]
[1643818607666,0.28441089,37163.0,37161.0,0.01]
[1643818607863,0.28441089,37163.0,37151.0,0.011]
[1643818607864,1.65,37161.0,37151.0,0.011]
[1643818608065,0.80692,37160.0,37151.0,0.01219844]
[1643818608267,0.40069678,37159.0,37151.0,0.01219844]
[1643818608466,0.04974789,37157.0,37151.0,0.01219844]
[1643818608667,1.03827003,37156.0,37151.0,0.01219844]
[1643818608867,1.03827003,37156.0,37151.0,0.0141]
[1643818608868,1.08827003,37156.0,37151.0,0.0141]
[1643818609065,1.08827003,37156.0,37154.0,0.00129959]
[1643818609421,0.90622,37156.0,37154.0,0.00129959]
[1643818609620,0.85622,37156.0,37154.0,0.00129959]
[1643818610021,0.80692,37156.0,37154.0,0.00129959]
[1643818610219,0.80692,37156.0,37154.0,0.001]
[1643818611819,0.09842989,37155.0,37154.0,0.001]
[1643818612222,3.16744293,37156.0,37154.0,0.002]
[1643818612421,0.85692,37156.0,37154.0,0.002]
[1643818612923,0.80692,37156.0,37154.0,0.002]
[1643818613360,0.85692,37156.0,37154.0,0.002]
[1643818613762,0.85692,37156.0,37154.0,0.00111872]
[1643818613966,0.80692,37156.0,37154.0,0.00111872]
[1643818614162,0.79692,37156.0,37155.0,0.00014192]
[1643818615563,0.30139678,37164.0,37155.0,0.00014192]
[1643818615764,0.29003759,37165.0,37156.0,0.28697995]
[1643818615964,0.30139678,37164.0,37155.0,0.00014192]
[1643818616163,0.30139678,37164.0,37158.0,0.25206318]
[1643818616364,0.29003759,37165.0,37159.0,0.00029888]
[1643818616764,0.34003759,37165.0,37159.0,0.00029888]
[1643818617433,0.34003759,37165.0,37156.0,0.01910658]
[1643818617614,0.30139678,37164.0,37160.0,0.00029887]
[1643818617814,0.134624,37169.0,37160.0,0.00029887]
[1643818617815,0.30139678,37168.0,37160.0,0.00029887]
[1643818618015,0.43602078,37169.0,37160.0,0.00029887]
[1643818618217,0.09234746,37168.0,37160.0,0.00029887]
[1643818618415,0.43602078,37169.0,37160.0,0.00029887]
[1643818618615,0.72963771,37169.0,37161.0,0.23420461]
[1643818618815,0.72963771,37169.0,37161.0,0.13193828]
[1643818619016,0.30139678,37169.0,37162.0,0.00029885]
[1643818619218,0.05,37169.0,37162.0,0.00029885]
[1643818619417,0.00021932,37164.0,37162.0,0.00029885]
[1643818619818,0.00021932,37164.0,37161.0,0.13193828]
[1643818620017,0.00021932,37164.0,37161.0,0.00029886]
[1643818620225,0.134604,37174.0,37162.0,0.0493]
[1643818620419,0.49982825,37176.0,37162.0,0.0493]
[1643818620420,0.2771363,37176.0,37162.0,0.0493]
[1643818620684,0.51568015,37179.0,37164.0,0.00589927]
[1643818620874,0.51568015,37179.0,37165.0,0.0493]
[1643818620875,0.33900136,37179.0,37165.0,0.0493]
[1643818621081,0.53750983,37177.0,37165.0,0.0493]
[1643818621274,0.31733137,37177.0,37167.0,0.00029881]
[1643818621475,0.31733137,37177.0,37168.0,0.0493]
[1643818622078,0.067289,37176.0,37168.0,0.0493]
[1643818622475,0.067289,37176.0,37171.0,0.00029879]
[1643818622677,0.067289,37176.0,37172.0,0.0493]
[1643818622876,0.067289,37176.0,37172.0,0.0293]
[1643818623074,0.36850145,37176.0,37172.0,0.0293]
[1643818623276,0.36850102,37176.0,37172.0,0.0293]
[1643818623677,0.36850102,37176.0,37172.0,0.00977435]
[1643818623877,0.27034038,37176.0,37172.0,0.00977435]
[1643818624078,0.32034038,37176.0,37172.0,0.00977435]
[1643818624712,0.06747523,37178.0,37172.0,0.00947558]
[1643818624910,0.06747523,37178.0,37172.0,0.00977435]
[1643818625313,0.00019023,37178.0,37173.0,0.26628171]
[1643818625518,0.00019023,37178.0,37174.0,0.0493]
[1643818625715,0.00019023,37178.0,37175.0,0.29293887]
[1643818625913,0.00019023,37178.0,37176.0,0.0493]
[1643818626314,0.00019023,37178.0,37177.0,0.85]
[1643818626516,0.00019023,37178.0,37177.0,0.8993]
[1643818626813,0.00019023,37178.0,37177.0,0.9993]
[1643818627216,0.55019023,37178.0,37177.0,0.0493]
[1643818627413,0.63065637,37178.0,37177.0,0.0493]
[1643818627915,0.00019023,37178.0,37177.0,0.0493]
[1643818629376,0.09903987,37187.0,37177.0,0.04944186]
[1643818629578,0.34622371,37185.0,37177.0,0.04944186]
[1643818629974,0.27917664,37186.0,37177.0,0.04944186]
[1643818630175,4.02652547,37164.0,37163.0,0.00575094]
[1643818630374,4.02652547,37164.0,37163.0,1.401513]
[1643818630574,0.05020654,37187.0,37164.0,1.65]
[1643818630778,0.05020654,37187.0,37172.0,0.1]
[1643818630779,0.30328564,37187.0,37172.0,0.1]
[1643818630979,0.00020654,37187.0,37173.0,0.0493]
[1643818631178,0.00020654,37187.0,37180.0,0.27564034]
[1643818631376,0.00020654,37187.0,37181.0,0.0493]
[1643818631577,0.00020654,37187.0,37181.0,0.32496963]
[1643818631920,0.00020654,37187.0,37181.0,0.0493]
[1643818632915,0.00020654,37187.0,37181.0,0.33542381]
[1643818633113,0.00020654,37187.0,37181.0,0.06918365]
[1643818633314,0.00020654,37187.0,37181.0,0.0493]
[1643818634013,0.00020654,37187.0,37180.0,0.26829349]
[1643818634420,0.00020654,37187.0,37182.0,0.1]
[1643818634617,0.00020654,37187.0,37185.0,0.1]
[1643818634818,0.00020654,37187.0,37186.0,1.2993]
[1643818635015,0.00020654,37187.0,37186.0,1.700813]
[1643818635214,0.00020654,37187.0,37186.0,2.06255247]
[1643818635414,0.00020654,37187.0,37186.0,2.32572951]
[1643818636964,0.00020654,37187.0,37186.0,2.57231564]
[1643818637164,0.00047416,37193.0,37186.0,2.42231564]
[1643818637368,0.33111356,37207.0,37189.0,0.1]
[1643818637565,0.00017556,37207.0,37191.0,0.1]
[1643818637765,0.330938,37208.0,37196.0,0.26590149]
[1643818637766,0.33111356,37208.0,37196.0,0.26590149]
[1643818637965,0.33111356,37208.0,37197.0,0.29764238]
[1643818637966,0.25044975,37208.0,37197.0,0.29764238]
[1643818638168,0.25044975,37208.0,37197.0,0.0493]
[1643818638465,0.067234,37207.0,37197.0,0.0493]
[1643818638665,0.33111356,37207.0,37197.0,0.0493]
[1643818638865,0.33111356,37207.0,37191.0,0.05]
[1643818638866,0.1,37198.0,37191.0,0.05]
[1643818639063,0.1,37192.0,37191.0,0.05]
[1643818639265,0.27222455,37200.0,37191.0,0.05]
[1643818639266,0.30542456,37199.0,37191.0,0.751513]
[1643818639518,0.1,37195.0,37192.0,0.57837019]
[1643818639713,0.1,37195.0,37193.0,0.450813]
[1643818639919,0.1,37195.0,37194.0,0.351513]
[1643818640115,0.0888,37195.0,37194.0,0.750813]
[1643818640319,0.1,37203.0,37194.0,1.98446017]
[1643818640516,0.1,37203.0,37198.0,0.28470326]
[1643818640719,0.1,37203.0,37199.0,0.0493]
[1643818640915,0.1,37203.0,37200.0,0.0493]
[1643818641115,0.1,37203.0,37201.0,0.0493]
[1643818641316,0.1,37203.0,37202.0,0.0493]
[1643818642113,0.6,37203.0,37202.0,0.0493]
[1643818642520,0.1,37203.0,37202.0,0.0493]
[1643818643566,0.05056796,37204.0,37202.0,0.0493]
[1643818643765,0.00056796,37204.0,37197.0,0.14979893]
[1643818643965,0.00017162,37202.0,37200.0,0.00011791]
[1643818644366,0.00017162,37202.0,37201.0,0.0493]
[1643818644868,0.00017556,37208.0,37201.0,0.05935569]
[1643818645072,0.00017556,37208.0,37207.0,0.01005569]
[1643818645268,0.5,37207.0,37205.0,0.0493]
[1643818645468,0.35125658,37208.0,37205.0,0.0493]
[1643818646169,0.01,37209.0,37205.0,0.0493]
[1643818646569,0.01,37209.0,37205.0,0.43036396]
[1643818646769,0.0005695,37208.0,37206.0,0.1]
[1643818647016,0.0006695,37209.0,37208.0,0.75]
[1643818647214,0.0006695,37209.0,37208.0,0.6493]
[1643818647415,0.0006695,37209.0,37208.0,0.1993]
[1643818647622,0.0006695,37209.0,37199.0,0.067204]
[1643818647623,1.15,37208.0,37199.0,0.067204]
[1643818647817,0.05,37202.0,37200.0,0.5]
[1643818648019,1.15,37208.0,37193.0,0.03204]
[1643818648020,1.84742336,37201.0,37193.0,0.03204]
[1643818648218,0.05,37199.0,37193.0,0.03204]
[1643818648618,0.34742336,37200.0,37193.0,0.03204]
[1643818648816,0.05,37200.0,37193.0,0.03204]
[1643818649015,0.29742336,37200.0,37193.0,0.03204]
[1643818649614,1.55,37201.0,37193.0,0.03204]
[1643818650115,0.05,37199.0,37193.0,0.03204]
[1643818650515,0.28792876,37198.0,37193.0,0.03204]
[1643818650780,0.05,37199.0,37197.0,0.22532513]
[1643818650981,1.30740581,37198.0,37197.0,0.22532513]
[1643818651182,1.31371401,37198.0,37193.0,0.03204]
[1643818651384,0.05,37194.0,37193.0,0.03204]
[1643818651584,0.39050569,37194.0,37190.0,0.01866702]
[1643818651783,0.05,37191.0,37190.0,0.01866702]
[1643818651984,2.07500293,37191.0,37190.0,0.01866702]
[1643818652182,2.35337613,37191.0,37190.0,0.01866702]
[1643818652385,2.12500293,37191.0,37183.0,0.001]
[1643818652584,0.05,37189.0,37183.0,0.001]
[1643818652994,1.65,37191.0,37183.0,0.001]
[1643818653188,0.05,37193.0,37183.0,0.001]
[1643818653387,0.05,37191.0,37187.0,0.17843761]
[1643818653585,0.05,37193.0,37187.0,0.17843761]
[1643818653586,0.26300224,37193.0,37187.0,0.17843761]
[1643818653986,0.29129817,37196.0,37187.0,0.17843761]
[1643818654812,0.34129817,37196.0,37187.0,0.17843761]
[1643818655013,0.34129817,37196.0,37190.0,0.00010031]
[1643818655014,0.29129817,37196.0,37190.0,0.00010031]
[1643818655215,0.34129817,37196.0,37187.0,0.17843761]
[1643818655813,0.05,37197.0,37187.0,0.17843761]
[1643818656617,0.23607126,37198.0,37190.0,0.30780698]
[1643818656618,0.0001692,37198.0,37190.0,0.30780698]
[1643818656817,0.0001692,37198.0,37193.0,0.178]
[1643818657116,0.0001692,37198.0,37193.0,0.2273]
[1643818657515,0.0001692,37198.0,37193.0,0.51537468]
[1643818657716,0.0001692,37198.0,37193.0,0.228]
[1643818657917,0.3022562,37198.0,37193.0,0.178]
[1643818658165,0.3022562,37198.0,37193.0,0.228]
[1643818658767,0.8,37197.0,37189.0,0.00817361]
[1643818658960,0.8,37197.0,37184.0,0.216535]
[1643818659161,0.8,37197.0,37184.0,0.116535]
[1643818659162,0.302087,37196.0,37184.0,0.116535]
[1643818659364,0.00017368,37196.0,37184.0,0.116535]
[1643818659763,0.00017368,37196.0,37188.0,0.00032692]
[1643818659965,0.30324808,37196.0,37188.0,0.00032692]
[1643818660165,0.09962483,37195.0,37188.0,0.00032692]
[1643818660365,0.3030744,37194.0,37188.0,0.00032692]
[1643818660768,0.3030744,37194.0,37183.0,0.001]
[1643818660965,0.3030744,37194.0,37188.0,0.2815099]
[1643818661166,0.3030744,37194.0,37189.0,0.00032691]
[1643818661566,0.00017368,37196.0,37189.0,0.00032691]
[1643818662016,0.00017368,37196.0,37191.0,0.21402119]
[1643818662213,0.00017368,37196.0,37191.0,0.05]
[1643818662413,0.00017368,37196.0,37190.0,0.0003269]
[1643818662613,0.00017368,37196.0,37194.0,0.25535529]
[1643818662813,0.00017368,37196.0,37194.0,0.30535529]
[1643818663214,0.00017368,37196.0,37195.0,0.3265735]
[1643818663418,0.00017368,37196.0,37195.0,0.1]
[1643818663815,0.13132877,37204.0,37195.0,0.1]
[1643818664013,0.2584683,37203.0,37195.0,0.1]
[1643818664213,0.26528699,37203.0,37200.0,0.23375843]
[1643818664618,0.26528699,37203.0,37183.0,0.001]
[1643818664619,0.134518,37200.0,37183.0,0.001]
[1643818664818,0.1,37184.0,37183.0,0.001]
[1643818665015,2.9091844,37184.0,37183.0,0.001]
[1643818665215,2.9091844,37184.0,37179.0,0.00271331]
[1643818665216,1.0,37183.0,37179.0,0.00271331]
[1643818665419,0.1,37180.0,37179.0,0.00271331]
[1643818665663,0.15,37180.0,37179.0,0.00271331]
[1643818666163,0.1,37180.0,37179.0,0.00271331]
[1643818667966,0.29877948,37181.0,37179.0,0.00271331]
[1643818668571,0.80681,37184.0,37179.0,0.00271331]
[1643818668974,0.80681,37184.0,37182.0,0.37804551]
[1643818669170,0.1,37193.0,37182.0,0.49529586]
[1643818669430,0.23062299,37186.0,37182.0,0.06725035]
[1643818669631,0.28062299,37186.0,37180.0,0.00032704]
[1643818669829,0.23062299,37186.0,37180.0,0.00032704]
[1643818670330,0.330938,37193.0,37181.0,0.54672085]
[1643818670331,0.1,37192.0,37181.0,0.54672085]
[1643818670528,0.1,37192.0,37181.0,0.31410971]
[1643818670529,0.05,37185.0,37181.0,0.31410971]
[1643818670729,0.067261,37188.0,37181.0,0.26443673]
[1643818671327,0.1,37189.0,37181.0,0.31443673]
[1643818671528,0.1,37185.0,37181.0,0.26443673]
[1643818671733,0.31003016,37184.0,37179.0,0.00285137]
[1643818671932,0.31003016,37184.0,37183.0,0.00032701]
[1643818672135,0.41003016,37184.0,37183.0,0.00032701]
[1643818672330,0.45933016,37184.0,37183.0,0.00032701]
[1643818672729,3.58991473,37184.0,37183.0,0.00032701]
[1643818672929,3.58991473,37184.0,37179.0,0.00285137]
[1643818672930,0.05,37180.0,37179.0,0.00285137]
[1643818673172,0.05,37176.0,37175.0,0.0031]
[1643818673371,0.1,37176.0,37175.0,0.0031]
[1643818673778,0.1,37176.0,37166.0,0.014]
[1643818673779,1.6,37175.0,37166.0,0.014]
[1643818673976,0.09164475,37168.0,37166.0,0.014]
[1643818674175,1.80185516,37167.0,37166.0,0.014]
[1643818674776,1.5,37167.0,37166.0,0.014]
[1643818675074,0.3789671,37168.0,37166.0,0.004]
[1643818675276,0.05,37169.0,37166.0,0.004]
[1643818675676,0.40305778,37174.0,37166.0,0.004]
[1643818675878,0.05,37173.0,37166.0,0.004]
[1643818676076,0.40305778,37174.0,37166.0,0.004]
[1643818676077,0.35305778,37174.0,37166.0,0.004]
[1643818676284,0.05,37174.0,37167.0,0.20310188]
[1643818676478,0.80681,37176.0,37167.0,0.20310188]
[1643818676479,0.80681,37176.0,37167.0,0.25310188]
[1643818676675,0.80681,37176.0,37168.0,0.00032714]
[1643818677319,0.80681,37176.0,37173.0,0.24161039]
[1643818677917,0.80681,37176.0,37173.0,0.24193749]
[1643818678118,0.80181,37176.0,37173.0,0.24193749]
[1643818678319,0.80181,37176.0,37174.0,0.22823789]
[1643818678922,0.23189397,37172.0,37169.0,0.38367593]
[1643818679120,0.35,37175.0,37173.0,0.00032709]
[1643818679321,0.27164471,37180.0,37173.0,0.00032709]
[1643818679721,0.1105127,37184.0,37173.0,0.00032709]
[1643818680122,0.05,37178.0,37172.0,0.52453757]
[1643818680319,0.05,37178.0,37177.0,0.00029109]
[1643818680983,0.1,37178.0,37177.0,0.00029109]
[1643818681185,1.45,37177.0,37166.0,0.004]
[1643818681385,0.05,37169.0,37166.0,0.004]
[1643818681590,0.18898508,37168.0,37166.0,0.004]
[1643818681785,0.05,37169.0,37166.0,0.004]
[1643818681985,0.29661526,37168.0,37166.0,0.004]
[1643818683185,0.15,37169.0,37166.0,0.004]
[1643818683386,0.1,37169.0,37166.0,0.004]
[1643818683785,0.05,37169.0,37166.0,0.004]
[1643818683988,0.05,37169.0,37166.0,0.00432643]
[1643818684415,0.27367237,37170.0,37166.0,0.00432643]
[1643818684715,0.32367237,37170.0,37166.0,0.00432643]
[1643818684916,0.32367237,37170.0,37166.0,0.004]
[1643818685116,0.36069689,37169.0,37166.0,0.00432643]
[1643818685316,0.05,37170.0,37166.0,0.00432643]
[1643818685515,0.30706806,37173.0,37166.0,0.00432643]
[1643818685516,0.35706806,37173.0,37166.0,0.00432643]
[1643818685716,0.45706806,37173.0,37166.0,0.00432643]
[1643818686117,0.45206806,37173.0,37166.0,0.004]
[1643818686318,0.095,37169.0,37168.0,0.00032641]
[1643818686517,0.5,37169.0,37168.0,0.00032641]
[1643818686917,0.095,37169.0,37168.0,0.00032641]
[1643818687318,0.045,37169.0,37166.0,0.004]
[1643818687518,0.045,37169.0,37167.0,9.847e-05]
[1643818688017,0.35331777,37169.0,37167.0,9.847e-05]
[1643818688278,0.01861413,37165.0,37164.0,0.003]
[1643818688477,0.41861413,37165.0,37164.0,0.003]
[1643818688673,0.06861413,37165.0,37164.0,0.003]
[1643818688872,0.11861413,37165.0,37164.0,0.003]
[1643818689279,0.42333183,37165.0,37164.0,0.003]
[1643818689474,1.47333183,37165.0,37164.0,0.003]
[1643818690475,1.87333183,37165.0,37164.0,0.003]
[1643818690675,1.47333183,37165.0,37164.0,0.003]
[1643818690875,1.42333183,37165.0,37164.0,0.003]
[1643818691074,1.46833183,37165.0,37164.0,0.003]
[1643818691922,1.46833183,37165.0,37162.0,2e-08]
[1643818692119,0.09,37163.0,37162.0,2e-08]
[1643818692317,0.64513793,37163.0,37162.0,2e-08]
[1643818693721,0.64513793,37163.0,37161.0,0.00126611]
[1643818693920,0.045,37156.0,37155.0,0.00130454]
[1643818694120,2.06275908,37156.0,37155.0,0.00130454]
[1643818694326,0.0449,37144.0,37141.0,0.013]
[1643818694721,1.15612655,37143.0,37141.0,0.013]
[1643818694923,1.25339757,37143.0,37141.0,0.013]
[1643818695318,1.32075057,37143.0,37141.0,0.013]
[1643818695518,1.52720507,37143.0,37141.0,0.013]
[1643818695774,1.22347955,37143.0,37141.0,0.013]
[1643818696570,0.79971595,37142.0,37141.0,0.013]
[1643818696770,1.22347955,37143.0,37141.0,0.013]
[1643818696975,0.925053,37143.0,37141.0,0.013]
[1643818697176,1.0047177,37142.0,37141.0,0.013]
[1643818697374,0.7,37142.0,37141.0,0.013]
[1643818697572,0.6033873,37142.0,37141.0,0.013]
[1643818697775,0.6033873,37142.0,37137.0,0.00199818]
[1643818697776,0.045,37134.0,37133.0,0.00078029]
[1643818697973,1.595,37134.0,37133.0,0.00078029]
[1643818698372,0.35085567,37134.0,37133.0,0.00078029]
[1643818698977,0.6,37133.0,37132.0,5.603e-05]
[1643818699177,1.52923567,37132.0,37128.0,7.2e-05]
[1643818699417,1.57413567,37132.0,37128.0,7.2e-05]
[1643818699618,0.37413567,37132.0,37128.0,7.2e-05]
[1643818700420,0.72413567,37132.0,37128.0,7.2e-05]
[1643818700624,0.75,37131.0,37124.0,0.001]
[1643818700823,0.75,37131.0,37128.0,7.2e-05]
[1643818700824,1.07697663,37131.0,37128.0,7.2e-05]
[1643818701023,0.0899,37129.0,37128.0,7.2e-05]
[1643818701223,0.134748,37136.0,37128.0,7.2e-05]
[1643818701422,0.134748,37136.0,37125.0,7.2e-05]
[1643818701423,0.30303292,37135.0,37125.0,7.2e-05]
[1643818701621,0.0899,37131.0,37125.0,7.2e-05]
[1643818701823,0.045,37129.0,37125.0,7.2e-05]
[1643818702021,0.0849,37131.0,37129.0,0.00031423]
[1643818702222,0.80976718,37130.0,37129.0,0.00031423]
[1643818702426,0.30976718,37130.0,37129.0,0.00031423]
[1643818702921,0.95,37129.0,37109.0,3.72347806]
[1643818703170,0.85303292,37128.0,37127.0,7.2e-05]
[1643818703370,0.45,37127.0,37124.0,0.01016796]
[1643818703568,0.107375,37128.0,37124.0,0.01016796]
[1643818703770,0.009928,37125.0,37124.0,0.01016796]
[1643818704771,48.5789992,37124.0,37120.0,7.2e-05]
[1643818705371,48.5789992,37124.0,37117.0,7.2e-05]
[1643818705572,48.5789992,37124.0,37117.0,0.100072]
[1643818705772,48.5789992,37124.0,37117.0,7.2e-05]
[1643818705974,0.3050212,37119.0,37118.0,0.85]
[1643818706173,0.3050212,37119.0,37118.0,0.24471425]
[1643818706372,48.5789992,37124.0,37118.0,0.39471425]
[1643818707123,48.5789992,37124.0,37121.0,0.1]
[1643818707322,48.5789992,37124.0,37122.0,0.2435386]
[1643818707525,48.5789992,37124.0,37122.0,0.0493]
[1643818707719,48.5789992,37124.0,37122.0,0.1493]
[1643818708522,48.5789992,37124.0,37123.0,1.75]
[1643818708821,48.5589992,37124.0,37123.0,1.8493]
[1643818709021,48.5589992,37124.0,37123.0,2.06282167]
[1643818709424,47.8902992,37124.0,37123.0,2.06282167]
[1643818709620,47.8902992,37124.0,37123.0,0.2993]
[1643818709821,47.8902992,37124.0,37123.0,0.1993]
[1643818710125,47.8902992,37124.0,37123.0,0.0993]
[1643818710322,47.8902992,37124.0,37123.0,0.8493]
[1643818710524,47.8902992,37124.0,37123.0,0.19815184]
[1643818710768,47.8902992,37124.0,37123.0,0.79815184]
[1643818710975,47.8902992,37124.0,37123.0,1.81325184]
[1643818711170,47.8902992,37124.0,37123.0,2.76816184]
[1643818711373,46.54154352,37124.0,37123.0,3.3900411]
[1643818711574,46.54154352,37124.0,37123.0,3.38466184]
[1643818711770,45.56640183,37124.0,37123.0,4.14226846]
[1643818711974,45.16132368,37124.0,37123.0,4.70877686]
[1643818712173,42.48930838,37124.0,37123.0,4.71665069]
[1643818712375,36.02727723,37124.0,37123.0,4.40665069]
[1643818712572,19.67299875,37124.0,37123.0,3.95665069]
[1643818712785,19.67299875,37124.0,37123.0,5.03576456]
[1643818712786,2.1714034,37124.0,37123.0,5.03576456]
[1643818712974,1.93533819,37175.0,37150.0,0.05]
[1643818713175,1.93533819,37175.0,37157.0,0.6165]
[1643818713374,0.33981337,37168.0,37166.0,0.2251024]
[1643818713573,0.33981337,37168.0,37158.0,0.1493]
[1643818713774,0.33981337,37168.0,37160.0,0.05]
[1643818713975,0.33981337,37168.0,37161.0,0.116583]
[1643818714277,2.00919256,37162.0,37161.0,0.0993]
[1643818714527,2.00919256,37162.0,37153.0,0.134576]
[1643818714528,0.37253119,37160.0,37151.0,0.1]
[1643818714728,1.98499721,37153.0,37152.0,0.5493]
[1643818714924,2.08159528,37153.0,37152.0,0.5493]
[1643818715124,1.98499721,37153.0,37152.0,0.0493]
[1643818716024,1.98499721,37153.0,37152.0,0.0443]
[1643818716228,1.98499721,37153.0,37152.0,0.0493]
[1643818716524,0.0007,37161.0,37152.0,0.0493]
[1643818717025,0.00055804,37154.0,37152.0,0.0493]
[1643818717225,0.55035804,37154.0,37153.0,0.401513]
[1643818717427,0.55035804,37154.0,37153.0,0.351513]
[1643818717628,0.81999021,37154.0,37152.0,0.0493]
[1643818717836,0.81999021,37154.0,37149.0,0.05251]
[1643818718190,0.08804873,37150.0,37149.0,0.05251]
[1643818718384,0.08804873,37150.0,37149.0,0.404023]
[1643818718783,0.81999021,37154.0,37149.0,0.404023]
[1643818718985,0.81999021,37154.0,37149.0,0.05251]
[1643818719382,0.00022608,37153.0,37152.0,0.00021535]
[1643818719782,0.00022608,37153.0,37152.0,0.351513]
[1643818719988,0.00022608,37153.0,37151.0,0.351513]
[1643818720185,0.00022608,37153.0,37151.0,0.35949307]
[1643818720493,0.24722512,37162.0,37155.0,0.25129924]
[1643818720884,0.24722512,37162.0,37155.0,0.05]
[1643818721083,0.24722512,37162.0,37154.0,0.067298]
[1643818721487,0.43,37175.0,37154.0,0.067298]
[1643818721684,0.00055695,37160.0,37154.0,0.067298]
[1643818721921,0.00055695,37160.0,37155.0,0.351513]
[1643818722127,0.00055695,37160.0,37158.0,0.067292]
[1643818722323,0.00055695,37160.0,37159.0,0.351513]
[1643818722625,0.43,37175.0,37159.0,0.351513]
[1643818722626,0.1959792,37165.0,37159.0,0.351513]
[1643818722824,1.2,37158.0,37157.0,0.21858456]
[1643818723028,1.2,37158.0,37157.0,0.57009756]
[1643818723222,1.2,37158.0,37157.0,0.31858456]
[1643818723724,1.2,37158.0,37157.0,0.1]
[1643818723926,1.2,37158.0,37152.0,0.13459]
[1643818724126,0.31229836,37156.0,37152.0,0.13459]
[1643818724624,0.31229836,37156.0,37152.0,0.33606972]
[1643818724824,1.2,37158.0,37152.0,0.33606972]
[1643818725026,1.2,37158.0,37152.0,0.38606972]
[1643818725225,1.2,37158.0,37153.0,0.1]
[1643818725226,0.00056317,37156.0,37153.0,0.1]
[1643818725904,1.7,37153.0,37147.0,0.045]
[1643818726100,0.28962952,37144.0,37143.0,0.03216]
[1643818726302,0.40458152,37144.0,37143.0,0.03216]
[1643818727401,0.73320218,37144.0,37138.0,0.02153583]
[1643818727602,0.354952,37143.0,37132.0,7.2e-05]
[1643818727799,0.32862066,37142.0,37132.0,7.2e-05]
[1643818728003,0.10462765,37136.0,37129.0,0.155182]
[1643818728206,0.4405827,37136.0,37129.0,0.155182]
[1643818728401,0.28678374,37135.0,37129.0,0.155182]
[1643818728603,0.329952,37134.0,37130.0,0.003172]
[1643818728802,0.27860005,37133.0,37130.0,0.003172]
[1643818729002,0.27860005,37133.0,37129.0,0.153282]
[1643818729003,1.96969903,37133.0,37129.0,0.153282]
[1643818729202,1.79645032,37130.0,37129.0,0.153354]
[1643818729431,1.7,37130.0,37129.0,0.153354]
[1643818729627,1.97662701,37130.0,37129.0,0.153214]
[1643818729828,1.97662701,37130.0,37129.0,0.152862]
[1643818730034,2.30763901,37130.0,37129.0,0.152862]
[1643818730630,2.72763901,37130.0,37129.0,0.152862]
[1643818731632,2.451012,37130.0,37129.0,0.152862]
[1643818732036,1.77540239,37129.0,37126.0,0.0011]
[1643818732335,2.16701873,37128.0,37127.0,5.19e-06]
[1643818732734,1.881012,37128.0,37127.0,5.19e-06]
[1643818732938,2.14344126,37128.0,37127.0,5.19e-06]
[1643818733369,2.14344126,37128.0,37126.0,0.0011]
[1643818733565,1.981012,37127.0,37126.0,0.0011]
[1643818733966,2.32072327,37127.0,37126.0,0.0011]
[1643818734167,1.981012,37127.0,37126.0,0.0011]
[1643818734569,0.42026685,37130.0,37126.0,0.0011]
[1643818734969,0.00026685,37130.0,37127.0,0.41182923]
[1643818735171,0.00026685,37130.0,37128.0,0.355088]
[1643818735369,0.00026685,37130.0,37129.0,0.0493]
[1643818735571,0.27451776,37130.0,37129.0,0.25258348]
[1643818735769,0.27451776,37130.0,37129.0,0.30258348]
[1643818735974,0.92451776,37130.0,37129.0,0.30258348]